Cogmind - Beta 16.1 @@@ ROGUE MODE // 2026.04.20 @ 19:26:49 Player: Bjolfur Result: Destroyed by LV-ZG5(j) with Overtuned Pulse Rifle Performance ------------- Evolutions (0) 0 Regions Visited (5) 1000 Robots Destroyed (18) 90 Value Destroyed (368) 368 Prototype IDs (2) 40 Alien Tech Used (0) 0 Bonus (949) 949 TOTAL SCORE: 2447 Bonus ------- Follower Combat Kills 149 Registered with UFD 300 Met Optimus in HQ 500 Cogmind --------- Core Integrity 0/250 Matter 280/300 Energy 100/100 System Corruption 1% Temperature Cool (93) Movement Walking (170) Ox1 Location -7/Scraptown Parts ------- > --- POWER (1) -------- (None) > --- PROPULSION (2) --- Overtuned Titanium Leg Overtuned Titanium Leg > --- UTILITY (2) ------ Large Storage Unit > --- WEAPON (2) ------- Enhanced Flamer > --- INVENTORY (15) --- Ion Engine Myomer Leg Scrap Suit Heat Sink Light Armor Plating Subdweller Machine Gun Subdweller Machine Gun Heavy Hammer DRS Beacon (Ready) Peak State ------------ > --- POWER ------------ Neutrino Core > --- PROPULSION ------- Light Treads Overtuned Treads > --- UTILITY ---------- Large Storage Unit Light Armor Plating > --- WEAPON ----------- Subdweller Machine Gun Bore Cannon > --- INVENTORY -------- Ion Engine Micro Nuclear Core Overtuned Treads Aluminum Leg Overtuned Titanium Leg Overtuned Titanium Leg Myomer Leg Heat Sink Large Storage Unit Light Armor Plating Subdweller Machine Gun Grenade Launcher Enhanced Flamer Heavy Hammer DRS Beacon [Rating: 22] Favorites ----------- Power Ion Engine Engine Ion Engine Power Core Neutrino Core Propulsion Light Treads Treads Light Treads Leg Overtuned Titanium Leg Utility Light Armor Plating Storage Large Storage Unit Protection Light Armor Plating Weapon Bore Cannon Energy Gun Medium Laser Ballistic Gun Subdweller Machine Gun Ballistic Cannon Bore Cannon Launcher Grenade Launcher Special Weapon Mining Laser Build | -11 -10 -10 -10 -7 -7 ------- Run | Yrd Mat Min Sub Rec Scr Slots Evolved . | . . . . . . Power . | . . . . . . Propulsion . | . . . . . . Utility . | . . . . . . Weapon . | . . . . . . Parts Attached 27 | 7 7 3 2 2 6 Power 3 | 1 1 . 1 . . Engine 2 | 1 1 . . . . Core 1 | . . . 1 . . Reactor . | . . . . . . Propulsion 8 | 2 2 . . . 4 Treads 6 | 2 2 . . . 2 Leg 2 | . . . . . 2 Wheel . | . . . . . . Hover . | . . . . . . Flight . | . . . . . . Utility 6 | 1 3 . . 1 1 Device . | . . . . . . Storage 3 | 1 1 . . . 1 Processor . | . . . . . . Hackware . | . . . . . . Protection 3 | . 2 . . 1 . Artifact . | . . . . . . Weapon 10 | 3 1 3 1 1 1 Energy Gun 3 | 2 . 1 . . . Energy Cannon . | . . . . . . Ballistic Gun 3 | 1 1 . . 1 . Ballistic Cannon 1 | . . . 1 . . Launcher 1 | . . 1 . . . Special Weapon 2 | . . 1 . . 1 Impact Weapon . | . . . . . . Slashing Weapon . | . . . . . . Piercing Weapon . | . . . . . . Special Melee Weapon . | . . . . . . Unidentified Prototypes . | . . . . . . Parts Lost 7 | . . 2 . . 5 Power 1 | . . . . . 1 Propulsion 1 | . . . . . 1 Utility 1 | . . . . . 1 Weapon 4 | . . 2 . . 2 Highest Loss Streak 5 | . . 2 . . 5 To Critical Strikes . | . . . . . . Average Backups 11 | 5 8 11 13 13 12 Power 1 | 1 1 1 2 2 1 Propulsion 3 | 3 2 3 3 4 3 Utility 3 | . 3 5 5 3 2 Weapon 3 | 1 2 2 3 3 4 Tool/Special . | . . . . . . Unused Backups 17 | . 3 . 2 1 11 Power 3 | . . . 1 . 2 Propulsion 7 | . 3 . . . 4 Utility 4 | . . . . 1 3 Weapon 3 | . . . 1 . 2 Tool/Special . | . . . . . . Average Slot Usage (%) 99 | . 98 100 100 100 98 Engine 7 | . 14 14 11 . . Core 6 | . . . 2 14 14 Treads 27 | . 28 28 28 28 27 Storage 14 | . 14 14 14 14 14 Protection 13 | . 12 14 14 14 13 Energy Gun 2 | . 10 3 . . . Ballistic Gun 13 | . 17 9 11 13 13 Ballistic Cannon 6 | . . . 2 14 13 Launcher 4 | . . 11 14 . . Peak Build Rating 22 | 6 8 8 18 19 22 Average Rating 12 | 4 7 7 10 18 19 On Entrance 9 | . 6 8 8 18 19 Avg Prop Armor Cover (%) 11 | . . . . . 11 Naked Turns . | . . . . . . Heaviest Build 50 | 14 31 32 49 50 50 Greatest Support 40 | 40 40 40 40 40 40 Greatest Overweight (x) 2 | 1 . . 1 1 2 Average Overweight (x) . | . . . . 1 . Largest Inventory Capacity 15 | 8 15 15 15 15 15 Average Capacity 13 | 7 8 15 15 15 15 Most Carried 15 | 8 12 13 15 15 15 Average Carried 11 | 6 8 11 14 13 13 Final Capacity 15 | 8 15 15 15 15 15 Final Carried 15 | 8 12 13 15 13 10 Class Distribution -------------------- 100% | Mutant Dominant Class ---------------- Mutant | -10/Materials Mutant | -10/Mines Mutant | -10/Subcaves Mutant | -7/Recycling Mutant | -7/Scraptown Resources | -11 -10 -10 -10 -7 -7 ----------- Run | Yrd Mat Min Sub Rec Scr Matter Collected 873 | 380 180 59 81 20 153 Remotely . | . . . . . . Salvage Created 476 | 149 240 15 17 . 55 Parts 31 | 10 14 2 2 . 3 Haulers Intercepted . | . . . . . . Recyclers Shooed 1 | . 1 . . . . Parts Field Recycled . | . . . . . . Retrieved Matter . | . . . . . . Parts Self-Destructed 16 | . . . 16 . . Prevented . | . . . . . . Parts Restored . | . . . . . . Kills | -11 -10 -10 -10 -7 -7 ------- Run | Yrd Mat Min Sub Rec Scr Combat Hostiles Destroyed 11 | . 5 3 1 . 2 Guns 7 | . 5 2 . . . Cannons 2 | . . . . . 2 AOE 2 | . . 1 1 . . Classes Destroyed 9 | 3 2 1 1 . 2 Worker 2 | 2 . . . . . Tunneler 1 | 1 . . . . . Recycler 1 | 1 . . . . . Turret 1 | . . . 1 . . Watcher 2 | . 2 . . . . Swarmer 4 | . . 3 1 . . Grunt 5 | . 5 . . . . Federalist 1 | . . . . . 1 Scrapper 1 | . . . . . 1 Best Kill Streak 4 | 2 4 2 1 . 1 Combat Bots Only 2 | . 2 2 1 . 1 Max Kills in Single Turn 1 | 1 1 1 1 . 1 Gunslinging . | . . . . . . Exploded 1 | . . 1 1 . . Melee . | . . . . . . Uniques/NPCs Destroyed . | . . . . . . Combat | -11 -10 -10 -10 -7 -7 -------- Run | Yrd Mat Min Sub Rec Scr Hostile Shots Fired 169 | . 35 24 41 . 69 Missed 48 | . 9 1 17 . 21 Hits 121 | . 26 23 24 . 48 Melee 1 | . . . . . 1 Projectile 120 | . 26 23 24 . 47 Critical Strikes 7 | . . 3 . . 4 Damage Taken 1580 | . 281 220 181 . 898 Core 251 | . 22 45 13 . 171 Absorbed by Shields . | . . . . . . Core Remaining (%) 100 | 100 . . . . . Volleys Fired 70 | 9 34 11 4 . 12 Largest 2 | 2 2 1 2 . 2 Hottest 100 | 70 70 100 78 . 80 Shots Fired 126 | 18 68 11 7 . 22 Gun 98 | 18 68 4 . . 8 Cannon 14 | . . . 3 . 11 Launcher 7 | . . 1 4 . 2 Special 7 | . . 6 . . 1 Kinetic 76 | 9 42 3 3 . 19 Thermal 43 | 9 26 7 . . 1 Explosive 7 | . . 1 4 . 2 Electromagnetic . | . . . . . . Robot Hit Streak 8 | 5 6 8 2 . 4 Robot Miss Streak 5 | 2 5 2 3 . 4 Penetration Max 1 | . . . . . 1 Secondary Targets 1 | . 1 . . . . Max Gunslinging Chain 1 | . 1 . . . . Shots Hit Robots 64 | 12 32 7 2 . 11 Core Hits 32 | 5 12 5 6 . 4 Critical Kills 1 | . . . . . 1 Critical Parts Destroyed 3 | . . . 1 . 2 Critical Strikes 7 | . 2 . 1 . 4 Burn 3 | . 2 . . . 1 Destroy 4 | . . . 1 . 3 Melee Attacks . | . . . . . . Impact . | . . . . . . Slashing . | . . . . . . Piercing . | . . . . . . Sneak Attacks . | . . . . . . Combat Hostiles . | . . . . . . Follow-up Attacks . | . . . . . . Damage Inflicted 1281 | 164 405 212 116 . 384 Guns 706 | 164 405 50 . . 87 Cannons 177 | . . . 22 . 155 Explosions 339 | . . 114 94 . 131 Melee . | . . . . . . Ramming . | . . . . . . Kinetic 622 | 65 254 39 22 . 242 Thermal 320 | 99 151 59 . . 11 Explosive 339 | . . 114 94 . 131 Electromagnetic . | . . . . . . Impact . | . . . . . . Slashing . | . . . . . . Piercing . | . . . . . . Highest Corruption 1 | . . . . . 1 Average Corruption 1 | . . . . . 1 Corruption Purged . | . . . . . . Corruption Blocked . | . . . . . . Overload Shots . | . . . . . . Overflow Damage 37 | . . 37 . . . Projectiles . | . . . . . . Explosions 37 | . . 37 . . . Melee . | . . . . . . Knockbacks 2 | . . . . . 2 Impact . | . . . . . . Kinetic 2 | . . . . . 2 Secondary . | . . . . . . Self-Inflicted Damage 69 | . . 27 15 . 27 Shots 3 | . . 1 1 . 1 Rammed . | . . . . . . Targets Rammed . | . . . . . . Kicked . | . . . . . . Crushed . | . . . . . . Highest Temperature 276 | 63 216 192 4 . 276 Average Temperature 81 | 27 74 98 4 . 100 Received Heat Transfer 853 | . 156 . 123 . 574 Siege Activations . | . . . . . . Martial Activations . | . . . . . . Shielding Activations . | . . . . . . Robots Disrupted . | . . . . . . Combat Hostiles . | . . . . . . Robots Corrupted . | . . . . . . Combat Hostiles . | . . . . . . Parts Fried . | . . . . . . Impact Corruptions . | . . . . . . Robots Melted . | . . . . . . Combat Hostiles . | . . . . . . Parts Melted 1 | . 1 . . . . Heat Transferred 1163 | 296 592 125 . . 150 Parts Sabotaged . | . . . . . . Parts Stolen . | . . . . . . Parts Stripped . | . . . . . . Power Chain Reactions . | . . . . . . Alert | -11 -10 -10 -10 -7 -7 ------- Run | Yrd Mat Min Sub Rec Scr Maximum Alert Level . | . . . . . . Low Security (%) 100 | 100 100 100 . 100 . Level 1 . | . . . . . . Level 2 . | . . . . . . Level 3 . | . . . . . . Level 4 . | . . . . . . Level 5 . | . . . . . . High Security . | . . . . . . Max Security . | . . . . . . Peak Influence 70 | 10 46 60 . 70 . Initial 70 | . . 5 . 70 . Average 8 | 1 10 4 . 18 . Influence Increases 577 | 20 195 92 270 . . Destroy 0b10 Robot/C 300 | . 100 60 140 . . Destroy 0b10 Robot/NC 30 | 20 10 . . . . Destroy Leader 44 | . 24 10 10 . . Allied During Kill 15 | . . . 15 . . Successful Hack 41 | . 29 12 . . . Destroy Structure 12 | . 2 10 . . . Lose Combat Pursuer 135 | . 30 . 105 . . Influence Decreases 577 | 20 181 106 123 147 . Entered New Map 86 | . . 9 . 77 . Time Decay 431 | 20 181 77 83 70 . Lost Part 20 | . . 20 . . . Lost Ally 40 | . . . 40 . . Squads Dispatched 3 | . 3 . . . . Investigation 1 | . 1 . . . . Extermination . | . . . . . . Reinforcement 2 | . 2 . . . . Assault . | . . . . . . Garrison . | . . . . . . Intercept . | . . . . . . Searches Triggered . | . . . . . . Construction Impeded . | . . . . . . Haulers Reinforced . | . . . . . . Active Scanning Responses . | . . . . . . Cargo Convoy Interrupts . | . . . . . . Stealth | -11 -10 -10 -10 -7 -7 --------- Run | Yrd Mat Min Sub Rec Scr Distress Signals 3 | . 3 . . . . Communications Jammed . | . . . . . . Distress Signals . | . . . . . . Times Spotted 52 | . 18 3 10 . 21 Peak Tracking Total 10 | . 3 3 5 . 10 Tactical Retreats 3 | . 1 . 2 . . Traps | -11 -10 -10 -10 -7 -7 ------- Run | Yrd Mat Min Sub Rec Scr Traps Triggered . | . . . . . . Indirectly . | . . . . . . Trap Hack Attempts . | . . . . . . Triggered . | . . . . . . Disarmed . | . . . . . . Reprogrammed . | . . . . . . Reused . | . . . . . . Traps Extracted . | . . . . . . Installed . | . . . . . . Triggered . | . . . . . . Machines | -11 -10 -10 -10 -7 -7 ---------- Run | Yrd Mat Min Sub Rec Scr Machines Disabled 5 | . . . 3 . 2 Max in Single Turn 2 | . . . 2 . 1 Machines Repaired . | . . . . . . Machines Dismantled . | . . . . . . Machines Sabotaged . | . . . . . . Overloaded Fab Kills . | . . . . . . Hacking | -11 -10 -10 -10 -7 -7 --------- Run | Yrd Mat Min Sub Rec Scr Machines Accessed 8 | . 3 1 . . 4 Terminals 4 | . 3 1 . . . Fabricators . | . . . . . . Repair Stations . | . . . . . . Recycling Units . | . . . . . . Scanalyzers . | . . . . . . Garrison Access . | . . . . . . Total Hacks 38 | . 8 2 . . 28 Successful 35 | . 5 2 . . 28 Failed 3 | . 3 . . . . Catastrophic . | . . . . . . Database Lockouts . | . . . . . . Manual . | . . . . . . Terminals 10 | . 8 2 . . . Fabricators . | . . . . . . Repair Stations . | . . . . . . Recycling Units . | . . . . . . Scanalyzers . | . . . . . . Garrison Access . | . . . . . . Terminal Hacks 35 | . 5 2 . . 28 Record 28 | . . . . . 28 Robot Analysis 1 | . 1 . . . . Prototype ID Bank 1 | . 1 . . . . Emergency Access Points 1 | . 1 . . . . Investigation Status 1 | . . 1 . . . Recall Investigation 1 | . . 1 . . . Hauler Manifests 1 | . 1 . . . . Zone Layout 1 | . 1 . . . . Fabricator Hacks . | . . . . . . Repair Station Hacks . | . . . . . . Recycling Unit Hacks . | . . . . . . Scanalyzer . | . . . . . . Garrison Access Hacks . | . . . . . . Unauthorized Hacks . | . . . . . . Terminals . | . . . . . . Fabricators . | . . . . . . Repair Stations . | . . . . . . Recycling Units . | . . . . . . Scanalyzers . | . . . . . . Garrison Access . | . . . . . . Data Cores Recovered . | . . . . . . Used . | . . . . . . Hacking Detections 2 | . 1 1 . . . Full Trace Events 1 | . 1 . . . . Feedback Events . | . . . . . . Feedback Blocked . | . . . . . . Robot Schematics Acquired . | . . . . . . Robots Built . | . . . . . . Authchips . | . . . . . . Time . | . . . . . . Total Robot Build Rating . | . . . . . . Part Schematics Acquired . | . . . . . . Parts Built . | . . . . . . Authchips . | . . . . . . Time . | . . . . . . Total Part Build Rating . | . . . . . . Part Studies Acquired . | . . . . . . Parts Repaired . | . . . . . . Time . | . . . . . . Parts Recycled . | . . . . . . Recycled Matter . | . . . . . . Retrieved Matter . | . . . . . . Retrieved Components . | . . . . . . Parts Scanalyzed . | . . . . . . Part Schematics Acquired . | . . . . . . Parts Damaged . | . . . . . . Bothacking | -11 -10 -10 -10 -7 -7 ------------ Run | Yrd Mat Min Sub Rec Scr Used RIF Installer . | . . . . . . Robots Hacked . | . . . . . . Non-combat . | . . . . . . Combat . | . . . . . . Robot Hacks Applied . | . . . . . . Relay Couplers Released . | . . . . . . Fabnet Peak Effective % . | . . . . . . Robots Rewired . | . . . . . . Allies Hacked . | . . . . . . Hacks Repelled . | . . . . . . Allies | -11 -10 -10 -10 -7 -7 -------- Run | Yrd Mat Min Sub Rec Scr Total Allies 3 | . . 3 . . . Largest Group 3 | . . 3 3 . . Highest-Rated Group 40 | . . 40 40 . . Highest-Rated Ally 16 | . . 16 16 . . Total Orders . | . . . . . . Ally Attacks 31 | . . . 31 . . Total Damage 273 | . . . 273 . . Kills 7 | . . . 7 . . Allies Corrupted . | . . . . . . Allies Melted 6 | . . . . . 6 Intel | -11 -10 -10 -10 -7 -7 ------- Run | Yrd Mat Min Sub Rec Scr Active Infowar (turns) . | . . . . . . Robot Analysis Total 1 | . 1 . . . . Derelict Logs Recovered 1 | . . 1 . . . Drone Launches . | . . . . . . Drone Recoveries . | . . . . . . Exploration | -11 -10 -10 -10 -7 -7 ------------- Run | Yrd Mat Min Sub Rec Scr Turns Passed 4369 | 144 845 910 591 300 1579 Spaces Moved 2055 | 65 373 534 308 123 652 Core 11 | 11 . . . . . Treads 2029 | 54 373 534 308 123 637 Legs 15 | . . . . . 15 Wheels . | . . . . . . Hover . | . . . . . . Flight . | . . . . . . Fastest Speed 50 | 50 160 160 160 240 100 Average Speed 188 | 145 160 160 168 240 233 Slowest Speed 320 | 160 160 160 240 240 320 Overloaded Moves . | . . . . . . Propulsion Burnouts . | . . . . . . Robots Hopped . | . . . . . . Potential Cave-ins . | . . . . . . Cave-ins Triggered . | . . . . . . Exploration Rate (%) 41 | 3 56 94 25 25 46 Regions Visited 5 Branch Regions 4 Pre-discovered Areas . | . . . . . . Known Exits Taken . | . . . . . . Unknown Exits Taken 5 | 1 1 1 1 1 . Scrap Searched 4 | . . 1 . . 3 Spaces Dug . | . . . . . . Terrain Destroyed 35 | . . 13 14 . 8 Melee . | . . . . . . Projectile 5 | . . 3 . . 2 AOE 30 | . . 10 14 . 6 Terrain Rammed . | . . . . . . Walls Destroyed . | . . . . . . Machines Disabled . | . . . . . . Actions | -11 -10 -10 -10 -7 -7 --------- Run | Yrd Mat Min Sub Rec Scr Total 2413 | 96 558 565 376 130 688 Wait 197 | 3 126 13 55 . . Move 2050 | 64 372 533 307 122 652 Hop . | . . . . . . Pick Up 37 | 13 9 3 4 2 6 Fast Attach 6 | 1 2 . 1 . 2 Attach 12 | 5 . 2 . 1 4 Detach . | . . . . . . Swap 13 | 1 5 3 1 1 2 Drop 28 | . 10 . 4 4 10 Fire 70 | 9 34 11 4 . 12 Melee . | . . . . . . Ram . | . . . . . . Kick . | . . . . . . Crush . | . . . . . . Escape Stasis . | . . . . . . Rewire . | . . . . . . Trap . | . . . . . . Miscellaneous . | . . . . . . Route ------- -11/Scrapyard -10/Materials (discovered 3 exits: [*Mat x2] / *Min) -10/Mines (discovered 2 exits: [*Mat] / [*Sub]) -10/Subcaves (discovered 4 exits: [*Mat x2] / [*Rec] / *Scr) -7/Recycling -7/Scraptown History --------- Turn | Location | Event 10 | -11/Scrapyard | Discovered new exit (range 16) 145 | -11/Scrapyard | Entered Materials 312 | -10/Materials | Build established: Mutant 458 | -10/Materials | Discovered new exit (range 13) 779 | -10/Materials | Discovered new exit (range 3) 950 | -10/Materials | Discovered new exit (range 10) 990 | -10/Materials | Entered Mines 1040 | -10/Mines | Learned 8 Materials zone layouts 1239 | -10/Mines | Found a hidden stash of uninstalled traps 1415 | -10/Mines | A weapon hastily lodged in a ceiling crevice suddenly fell to the ground 1437 | -10/Mines | Discovered new exit (range 9) 1869 | -10/Mines | Assisted by bots powering up and referring to "LRC-V3" 1892 | -10/Mines | Discovered new exit (range 5) 1900 | -10/Mines | Entered Subcaves 1900 | -10/Subcaves | Accompanied by 3 allies 1901 | -10/Subcaves | Approached by a straggling Scientist 1922 | -10/Subcaves | Scientist uncovered a shortcut to Scraptown 1949 | -10/Subcaves | Shifting Twisted Machinery released Sub. Machine Gun 2026 | -10/Subcaves | A swath of the cavern ceiling suddenly collapsed 2047 | -10/Subcaves | Discovered new exit (range 7) 2172 | -10/Subcaves | Shifting Twisted Machinery released Shrapnel Trap 2251 | -10/Subcaves | Discovered new exit (range 9) 2416 | -10/Subcaves | Discovered new exit (range 14) 2436 | -10/Subcaves | Lost 3 allies 2491 | -10/Subcaves | Entered Recycling 2492 | -7/Recycling | Met a Zionite searching for Scraptown 2731 | -7/Recycling | Scanned before Scraplab entrance 2764 | -7/Recycling | Entered Scraplab 2788 | -7/Recycling | Discovered new exit (range 2) 2791 | -7/Recycling | Entered Scraptown 3178 | -7/Scraptown | Visited TADAMA 3245 | -7/Scraptown | Visited UFD Registry 3245 | -7/Scraptown | Registered with UFD as "Thermodriver" 3418 | -7/Scraptown | Visited Supply Room 3480 | -7/Scraptown | Visited DA-N13 Charitable Foundation 3929 | -7/Scraptown | Met Optimus 3929 | -7/Scraptown | Accepted into 0bPrime 4061 | -7/Scraptown | Visited Derelict Rescue Squad 4078 | -7/Scraptown | Found DRS Beacon 4125 | -7/Scraptown | Civil war broke out across Scraptown 4206 | -7/Scraptown | Optimus destroyed in the chaos of civil war 4221 | -7/Scraptown | Lost 6 allies 4249 | -7/Scraptown | Visited Scrap Suit Storage 4285 | -7/Scraptown | Found Scrap Suit 4335 | -7/Scraptown | Core integrity fell below 50% 4367 | -7/Scraptown | Core integrity fell below 20% 4370 | -7/Scraptown | Destroyed by LV-ZG5(j) with Overtuned Pulse Rifle Last Messages --------------- 04328_ Bore Cannon destroyed. 04331_ 0Q-UOU(j) overheating. 04332_ 0Q-UOU(j) heat short circuits Scrap Suit. 04332_ 0Q-UOU(j) overheating. 04335_ 0Q-UOU(j) critical meltdown. 04338_ Acquired 50 matter. 04347_ Ovr. Treads suddenly begins malfunctioning. 04350_ Lgt. Treads destroyed. 04351_ Dropped Ovr. Treads. 04352_ Lgt. Armor Plating destroyed. 04352_ Critical hit (Burn: +50). 04367_ Ovr. Titanium Leg suddenly begins malfunctioning. 04367_ LV-ZG5(j) misfires. 04368_ AX-8LQ(g) destroyed. 04369_ UZ-QKG(h): "I'm having second thoughts about this." 04369_ LV-ZG5(j) suffers critical hit (Burn). 04370_ Neutrino Core destroyed. Map ----- +----------------------------------------------------+ | ##X ##??????? ???#?????"""???? #????????????? | | ! * "#??????? """? #????"""""??? #????????????? | | ! = "#???#??? """ #????" "??? #????????????? | | !"#???# "" ?????" "??# #????????????? | | ! !"#???# """ "????"" "!?# #????????????? | | ! !"#???# "#????"" ""?# #??###???????? | | *!##???? ?????" "??# #? ????????? | | !!= #??????"""""???????? ???# #? ?????????? | | ####%###???????# #?????????# #???# #? #?????????? | | ####!########### ########### ##### ## "#????????? | | """ " """"""""" """"""""""" """"" "" "#????????? | | " %![*[ =%! "#????????? | | " !=[!= /%/!= "#???"????? | | " !%! !/%!=! #?? "#???? | | " = !!! ==!*% "# "#???? | | " %%!%= !%= "#???? | | =% =%= " " """"""""""""""""""" """ """??? | | %!% " """"""""""""""""""""""" "#??? ???? | | [ "" # ################"" "#????? ??? | | % "" ! ##????????#"" ########## | | [ ""# !%[ X"#????????#"" "## """"" | | ""# " "" ##????????#"" ## " " " | | ""# "" [ "" X"#??????###"" ## | | % ""# " =%*= " ######### #=*! ## | | " "" "=%= jj =%!*j%p!!%!== j | | "" "! j =@=p* =[!!%x* j ;# | | "# " " #######;# # =%** ## " " " | | ""# ""= "" ""#??????###"" "## """"" | | ""# "" "" ##????????#"" "########## | | ""# X"#????????#"" "#????????? | | ""# ##????????#"" "#????????? | | ""###### ################"" "#??###???? | | """""""""""""""""""""""""""" "##"""""#?? | | """""" "" """""""""""""""""" "#?? | | !! "## "#?? | | ==% % "#?? "#?? | | ![! "#??? !"#?? | | " ##??? "??? | | " =![ #???????? | | """""" """"""""" %""""""""""" """""" ##???????? | | ###### ###########!########### ###### #????????? | | ????""""???????# [ "#??# # #????????? | | ???? ???????# " "#??# # #????????? | | ??? ???????#" "" [#??# ] # #????????? | | ??# ???????# == ""[#??# $ %!# #????????? | | ??# ???????# "== ""[#??# ##! =# #????????? | | ??? ???????# """[[[[#??# ## # ########## | | ????? # ???????##########??########## | | ????????????????????????????????????# | | ????????????????????????????????????# | +----------------------------------------------------+ Best States ------------- Heat Dissipation 25 Energy Generation 19 Energy Capacity 315 Matter Stores 300 Matter Capacity 300 Sight Range 16 Terrain Scan Density 10 Armor Coverage 150 Evasion (%) 55 Recoil Reduction 2 Item Schematics ----------------- None Robot Schematics ------------------ None Fabricated ------------ Nothing Repaired ---------- Nothing Studied --------- None Alien Tech Used ----------------- None Achievements -------------- Civilization 2243 Link The Feds Nice Directions, Buddy You May Approach The Wall Challenges ------------ None Game ------ Seed PoweredReactionCutter Manual? 0 Play Time 01:11:27 Cumulative 290.2 hours Start 2026.04.20 @ 18:05:05 End 2026.04.20 @ 19:26:49 Sessions 1 Manual Loads 0 Difficulty Rogue Special Mode None Game No. 47 Rogue 14 Adventurer 0 Explorer 33 Win Type - Total 5 Types 5/0/0/0/0/0/0/0/0/0 Lore% 33 Gallery% 40 Achievement% 25 Wizard Run 0 Options --------- Layout 1 ASCII 0 Keyboard 0 Movement Mouse Keybinds 0 Fullscreen 1 Font 24/Smallcaps Map View 50x35 Zoom Use 0% Tactical HUD 1 Map Filters NONE Filters NONE Steam 1 RUN: a927e4c8-81a6-431d-9ab2-2136ef5fca01